Cogmind - Beta 17.1 @@@ ROGUE MODE // 2026.08.20 @ 16:30:57 Player: Minty Result: Destroyed by 9L-V4T(R) with Subdweller Laser Performance ------------- Evolutions (0) 0 Regions Visited (2) 400 Robots Destroyed (8) 40 Value Destroyed (213) 213 Prototype IDs (18) 360 Alien Tech Used (0) 0 Bonus (5432) 5432 TOTAL SCORE: 6445 Bonus ------- Prayed to X0-1V1 5000 Major X0-1V1 Interference 500 Friendly Fire -68 Cogmind --------- Core Integrity 0/100 Matter 281/300 Energy 64/125 System Corruption 0% Temperature Cool (15) Movement Treading (160) Location -10/Subcaves Parts ------- > --- POWER (1) -------- Light Ion Engine (fused) > --- PROPULSION (2) --- Light Treads (fused) Improved Treads (fused) > --- UTILITY (2) ------ Small Storage Unit Self-contained Transmogrifier > --- WEAPON (2) ------- Bolt Gun (fused) EMP Blaster (fused) > --- INVENTORY (8) ---- Ion Engine Light Treads Aluminum Leg Wheel Compact Wheel Improved Heat Sink Power Bank Peak State ------------ > --- POWER ------------ Heavy Ion Engine > --- PROPULSION ------- Aluminum Leg Aluminum Leg > --- UTILITY ---------- Small Storage Unit Self-contained Transmogrifier > --- WEAPON ----------- Medium Laser Medium Laser > --- INVENTORY -------- Ion Engine Light Treads Light Treads Wheel Compact Wheel Improved Heat Sink Assault Rifle Assault Rifle [Rating: 18] Favorites ----------- Power Ion Engine Engine Ion Engine Propulsion Aluminum Leg Treads Light Treads Leg Aluminum Leg Utility Small Storage Unit Device Self-contained Transmogrifier Storage Small Storage Unit Weapon Medium Laser Energy Gun Medium Laser Ballistic Gun Bolt Gun Launcher EMP Blaster Impact Weapon Heavy Hammer Build | -11 -10 -10 ------- Run | Yrd Mat Sub Slots Evolved . | . . . Power . | . . . Propulsion . | . . . Utility . | . . . Weapon . | . . . Parts Attached 7 | . 4 3 Power . | . . . Engine . | . . . Core . | . . . Reactor . | . . . Propulsion 1 | . . 1 Treads 1 | . . 1 Leg . | . . . Wheel . | . . . Hover . | . . . Flight . | . . . Utility 2 | . 2 . Device 1 | . 1 . Storage 1 | . 1 . Processor . | . . . Hackware . | . . . Protection . | . . . Artifact . | . . . Weapon 4 | . 2 2 Energy Gun 2 | . 2 . Energy Cannon . | . . . Ballistic Gun 2 | . . 2 Ballistic Cannon . | . . . Launcher . | . . . Special Weapon . | . . . Impact Weapon . | . . . Slashing Weapon . | . . . Piercing Weapon . | . . . Special Melee Weapon . | . . . Unidentified Prototypes . | . . . Parts Lost 1 | . . 1 Power . | . . . Propulsion . | . . . Utility . | . . . Weapon 1 | . . 1 Highest Loss Streak 1 | . . 1 To Critical Strikes . | . . . Average Backups 7 | . 6 7 Power 1 | . 1 1 Propulsion 3 | . 3 4 Utility . | . . 1 Weapon 1 | . 1 1 Tool/Special . | . . . Unused Backups 12 | . 6 6 Power 2 | . 1 1 Propulsion 6 | . 2 4 Utility 2 | . 1 1 Weapon 2 | . 2 . Tool/Special . | . . . Average Slot Usage (%) 96 | . 95 98 Engine 14 | . 14 14 Treads 11 | . . 26 Leg 16 | . 28 1 Device 12 | . 10 14 Storage 14 | . 14 14 Energy Gun 20 | . 24 15 Ballistic Gun 5 | . 2 9 Peak Build Rating 18 | . 18 18 Average Rating 13 | . 10 16 On Entrance 10 | 6 6 18 Avg Prop Armor Cover (%) . | . . . Naked Turns . | . . . Heaviest Build 17 | 13 17 17 Greatest Support 43 | 20 20 43 Greatest Overweight (x) . | . . . Average Overweight (x) . | . . . Largest Inventory Capacity 8 | . 8 8 Average Capacity 7 | . 7 8 Most Carried 8 | . 8 8 Average Carried 7 | . 6 7 Final Capacity 8 | 8 8 8 Final Carried 8 | 6 8 7 Transmogrified Parts 7 | . 1 6 Integrity Recovered 131 | . 41 90 Class Distribution -------------------- 100% | Mutant Dominant Class ---------------- Mutant | -10/Materials Mutant | -10/Subcaves Resources | -11 -10 -10 ----------- Run | Yrd Mat Sub Matter Collected 290 | 200 43 47 Remotely . | . . . Salvage Created 292 | . 214 78 Parts 12 | . 7 5 Haulers Intercepted . | . . . Recyclers Shooed . | . . . Parts Field Recycled . | . . . Retrieved Matter . | . . . Parts Self-Destructed 12 | . . 12 Prevented . | . . . Parts Restored . | . . . Kills | -11 -10 -10 ------- Run | Yrd Mat Sub Combat Hostiles Destroyed 8 | . 5 3 Guns 8 | . 5 3 Classes Destroyed 3 | . 1 2 Swarmer 3 | . . 3 Grunt 5 | . 5 . Artisan 1 | . . 1 Best Kill Streak 3 | . 3 2 Combat Bots Only 3 | . 3 2 Max Kills in Single Turn 2 | . 1 2 Gunslinging 1 | . . 1 Exploded . | . . . Melee . | . . . Uniques/NPCs Destroyed . | . . . Combat | -11 -10 -10 -------- Run | Yrd Mat Sub Hostile Shots Fired 65 | . 40 25 Missed 21 | . 14 7 Hits 44 | . 26 18 Projectile 44 | . 26 18 Damage Taken 546 | . 312 234 Core 120 | . 71 49 Absorbed by Shields . | . . . Core Remaining (%) 100 | 100 . . Volleys Fired 27 | . 16 11 Largest 2 | . 2 2 Hottest 100 | . 100 70 Shots Fired 52 | . 31 21 Gun 50 | . 31 19 Cannon . | . . . Launcher 2 | . . 2 Special . | . . . Kinetic 11 | . 1 10 Thermal 39 | . 30 9 Explosive . | . . . Electromagnetic 2 | . . 2 Robot Hit Streak 5 | . 5 3 Robot Miss Streak 4 | . 2 4 Penetration Max . | . . . Secondary Targets 3 | . 2 1 Max Gunslinging Chain 1 | . 1 1 Shots Hit Robots 28 | . 20 8 Core Hits 15 | . 11 4 Critical Kills . | . . . Critical Parts Destroyed . | . . . Critical Strikes 2 | . 2 . Burn 2 | . 2 . Melee Attacks 4 | . . 4 Impact 4 | . . 4 Slashing . | . . . Piercing . | . . . Sneak Attacks . | . . . Combat Hostiles . | . . . Follow-up Attacks . | . . . Damage Inflicted 452 | . 239 213 Guns 396 | . 239 157 Cannons . | . . . Explosions 56 | . . 56 Melee . | . . . Ramming . | . . . Kinetic 83 | . . 83 Thermal 313 | . 239 74 Explosive . | . . . Electromagnetic 56 | . . 56 Impact . | . . . Slashing . | . . . Piercing . | . . . Highest Corruption . | . . . Average Corruption . | . . . Corruption Purged . | . . . Corruption Blocked . | . . . Overload Shots . | . . . Overflow Damage . | . . . Projectiles . | . . . Explosions . | . . . Melee . | . . . Knockbacks . | . . . Impact . | . . . Kinetic . | . . . Secondary . | . . . Self-Inflicted Damage 20 | . . 20 Shots 1 | . . 1 Rammed . | . . . Targets Rammed . | . . . Kicked . | . . . Crushed . | . . . Highest Temperature 393 | . 393 . Average Temperature 203 | . 203 . Received Heat Transfer 207 | . 180 27 Effects 1 | . 1 . Shutdowns 1 | . 1 . Siege Activations . | . . . Martial Activations . | . . . Shielding Activations . | . . . Robots Disrupted . | . . . Combat Hostiles . | . . . Robots Corrupted . | . . . Combat Hostiles . | . . . Parts Fried . | . . . Impact Corruptions . | . . . Robots Melted . | . . . Combat Hostiles . | . . . Parts Melted 5 | . 5 . Heat Transferred 1073 | . 851 222 Parts Sabotaged . | . . . Parts Stolen . | . . . Parts Stripped . | . . . Power Chain Reactions . | . . . Alert | -11 -10 -10 ------- Run | Yrd Mat Sub Maximum Alert Level . | . . . Low Security (%) 100 | . 100 . Level 1 . | . . . Level 2 . | . . . Level 3 . | . . . Level 4 . | . . . Level 5 . | . . . High Security . | . . . Max Security . | . . . Peak Influence 50 | . 50 . Initial . | . . . Average 10 | . 10 . Influence Increases 175 | . 115 60 Destroy 0b10 Robot/C 160 | . 100 60 Destroy Leader 10 | . 10 . Successful Hack 5 | . 5 . Influence Decreases 175 | . 65 110 Entered New Map 25 | . . 25 Time Decay 150 | . 65 85 Squads Dispatched . | . . . Investigation . | . . . Extermination . | . . . Reinforcement . | . . . Assault . | . . . Garrison . | . . . Intercept . | . . . Searches Triggered . | . . . Construction Impeded . | . . . Haulers Reinforced . | . . . Active Scanning Responses . | . . . Cargo Convoy Interrupts . | . . . Stealth | -11 -10 -10 --------- Run | Yrd Mat Sub Distress Signals . | . . . Communications Jammed . | . . . Distress Signals . | . . . Times Spotted 12 | . 7 5 Peak Tracking Total 3 | . 3 3 Tactical Retreats . | . . . Traps | -11 -10 -10 ------- Run | Yrd Mat Sub Traps Triggered . | . . . Indirectly . | . . . Trap Hack Attempts . | . . . Triggered . | . . . Disarmed . | . . . Reprogrammed . | . . . Reused . | . . . Traps Extracted . | . . . Installed . | . . . Triggered . | . . . Machines | -11 -10 -10 ---------- Run | Yrd Mat Sub Machines Disabled 2 | . . 2 Max in Single Turn 1 | . . 1 Machines Repaired . | . . . Machines Dismantled . | . . . Machines Sabotaged . | . . . Overloaded Fab Kills . | . . . Hacking | -11 -10 -10 --------- Run | Yrd Mat Sub Machines Accessed 2 | . 1 1 Terminals 1 | . 1 . Fabricators . | . . . Repair Stations . | . . . Recycling Units . | . . . Scanalyzers . | . . . Garrison Access . | . . . Total Hacks 8 | . 7 1 Successful 4 | . 3 1 Failed 4 | . 4 . Catastrophic 1 | . 1 . Database Lockouts . | . . . Manual 3 | . 3 . Terminals 7 | . 7 . Fabricators . | . . . Repair Stations . | . . . Recycling Units . | . . . Scanalyzers . | . . . Garrison Access . | . . . Terminal Hacks 4 | . 3 1 Prototype ID Bank 1 | . 1 . Locate Traps 1 | . 1 . Hauler Manifests 1 | . 1 . Proto ID Catalog 1 | . . 1 Fabricator Hacks . | . . . Repair Station Hacks . | . . . Recycling Unit Hacks . | . . . Scanalyzer . | . . . Garrison Access Hacks . | . . . Unauthorized Hacks . | . . . Terminals . | . . . Fabricators . | . . . Repair Stations . | . . . Recycling Units . | . . . Scanalyzers . | . . . Garrison Access . | . . . Data Cores Recovered . | . . . Used . | . . . Hacking Detections 1 | . 1 . Full Trace Events 1 | . 1 . Feedback Events . | . . . Feedback Blocked . | . . . Robot Schematics Acquired . | . . . Robots Built . | . . . Authchips . | . . . Time . | . . . Total Robot Build Rating . | . . . Part Schematics Acquired . | . . . Parts Built . | . . . Authchips . | . . . Time . | . . . Total Part Build Rating . | . . . Part Studies Acquired . | . . . Parts Repaired . | . . . Time . | . . . Parts Recycled . | . . . Recycled Matter . | . . . Retrieved Matter . | . . . Retrieved Components . | . . . Parts Scanalyzed . | . . . Part Schematics Acquired . | . . . Parts Damaged . | . . . Bothacking | -11 -10 -10 ------------ Run | Yrd Mat Sub Used RIF Installer . | . . . Robots Hacked . | . . . Non-combat . | . . . Combat . | . . . Robot Hacks Applied . | . . . Relay Couplers Released . | . . . Fabnet Peak Effective % . | . . . Robots Rewired . | . . . Allies Hacked . | . . . Hacks Repelled . | . . . Allies | -11 -10 -10 -------- Run | Yrd Mat Sub Total Allies . | . . . Largest Group . | . . . Highest-Rated Group . | . . . Highest-Rated Ally . | . . . Total Orders . | . . . Ally Attacks . | . . . Total Damage . | . . . Kills . | . . . Allies Corrupted . | . . . Allies Melted . | . . . X0-1V1 Amusement Gains 14 | . 6 8 Average Entertainment 10 | . 9 10 Good Acts 1 | . . 1 Bad Acts 3 | . 1 2 Intel | -11 -10 -10 ------- Run | Yrd Mat Sub Active Infowar (turns) . | . . . Robot Analysis Total . | . . . Derelict Logs Recovered 1 | . . 1 Drone Launches . | . . . Drone Recoveries . | . . . Exploration | -11 -10 -10 ------------- Run | Yrd Mat Sub Turns Passed 535 | . 298 237 Spaces Moved 219 | 1 98 120 Core . | . . . Treads 112 | . . 112 Legs 107 | 1 98 8 Wheels . | . . . Hover . | . . . Flight . | . . . Fastest Speed 120 | 120 120 120 Average Speed 140 | 120 120 157 Slowest Speed 160 | 120 120 160 Overloaded Moves . | . . . Propulsion Burnouts . | . . . Robots Hopped . | . . . Potential Cave-ins . | . . . Cave-ins Triggered . | . . . Exploration Rate (%) 9 | 2 14 12 Regions Visited 2 Branch Regions 1 Pre-discovered Areas . | . . . Known Exits Taken . | . . . Unknown Exits Taken 2 | 1 1 . Scrap Searched . | . . . Spaces Dug . | . . . Terrain Destroyed . | . . . Melee . | . . . Projectile . | . . . AOE . | . . . Terrain Rammed . | . . . Walls Destroyed . | . . . Machines Disabled . | . . . Actions | -11 -10 -10 --------- Run | Yrd Mat Sub Total 388 | . 247 141 Wait 121 | . 121 . Move 217 | . 97 120 Hop . | . . . Pick Up 7 | . 5 2 Fast Attach 3 | . 3 . Attach 2 | . . 2 Detach 1 | . 1 . Swap 2 | . 1 1 Drop 4 | . 3 1 Fire 27 | . 16 11 Melee 4 | . . 4 Ram . | . . . Kick . | . . . Crush . | . . . Escape Stasis . | . . . Rewire . | . . . Trap . | . . . Miscellaneous . | . . . Route ------- -11/Scrapyard -10/Materials -10/Subcaves History --------- Turn | Location | Event 1 | -11/Scrapyard | Discovered new exit (range 0) 1 | -11/Scrapyard | Entered Materials 224 | -10/Materials | Made a sacrifice at D.C.S.S. Altar Unit 224 | -10/Materials | Forcibly received Sfc. Transmogifier from X0-1V1 261 | -10/Materials | X0-1V1 sent hostile G-34 Mercenary (x3) 269 | -10/Materials | Core integrity fell below 50% 270 | -10/Materials | Discovered new exit (range 7) 299 | -10/Materials | Entered Subcaves 300 | -10/Subcaves | Approached by a straggling Scientist 301 | -10/Subcaves | Learned Materials emergency access door positions 331 | -10/Subcaves | Build established: Mutant 359 | -10/Subcaves | Visited 4L-MR0's lab 369 | -10/Subcaves | X0-1V1 sent hostile S-10 Pest (x3) 376 | -10/Subcaves | Core integrity fell below 20% 410 | -10/Subcaves | Found Power Bank 536 | -10/Subcaves | Destroyed by 9L-V4T(R) with Subdweller Laser Last Messages --------------- 00391_ 4L-MR0 mumbles: "Who knows where that last prototype ended up, probably tossed aside somewhere as if it were useless junk..." 00391_ X0-1V1: "The ol' switcheroo!" Form resolidifies at new position. S-10 Pest form resolidifies at new position. 00393_ 4L-MR0 cries out in pain. 00393_ 4L-MR0 destroyed. 00396_ S-10 Pest destroyed. 00399_ Acquired 28 matter. 00405_ Acquired 18 matter. 00410_ Acquired Power Bank. 00413_ Flight Unit fries itself beyond repair. 00419_ Acquired 1 matter. 00420_ Subatomizers dissect the Lgt. Ion Engine, destroying it. 00425_ Sfc. Transmogrifier converts Assault Rifle into Bolt Gun. 00431_ Subatomizers dissect the Tech Extrapolator. 00519_ Med. Laser destroyed. 00530_ Sfc. Transmogrifier converts Assault Rifle into EMP Blaster. 00532_ Bolt penetrates 9L-V4T(R). 00536_ X0-1V1 chuckles heartily! Map ----- +----------------------------------------------------+ | | | | | | | | | | | | | ?????????????????????????????????????????????????? | | ?????????????????????????????????????????????????? | | ?????????????????????????????????????????????????? | | ?????????????????????????????????????????????????? | | ?????????????????????????????????????????????????? | | ???????????????????????###???????????????????????? | | ??????????????????????? " ###????????????????????? | | ??????????????????????? ""##???????????????????? | | ????????????????"?????? #???????????????????? | | ???????????????##&?????? "##??????????????????? | | ???????????????# < ????? " #??????????????????? | | ???????????????#< ????? #??????????????????? | | ???????????????#" ???? " #??????????????????? | | ???????????????#" ##### "#??????????????????? | | ????????????####" # "#???????????????????? | | ??###???????# ##??## " #???????????????????? | | ### ##??##### #??# R ##"" ##???????????????????? | | #### ## #### R#####????????????????????? | | ## ## ### ##???????????????? | | # ## @ #???????????????? | | ### ### ;## #??????????????? | | # ## ##?? #?????????????? | | ## #??? ### ##?????????????? | | ## #??????????????????? | | ###### ## #??????????????????? | | #####????# ????????????????? | | #?????????# ## ????????????????? | | ??????????# ### #?# ???????????????? | | ??????????#### #?## #?# ????????????????? | | ??????????????# #??## #? ## ????????????????? | | ??????????????# #???? #??#??????????????????? | | ?????????????? ???? ##?????????????????????? | | ?????????????? ??? ##??????????????????????? | | ????????????? ?? ##???????????????????????? | | ????????????? ?????????????????????????????? | | ???????????? #????????????????????????????? | | ????????????? ?????????????????????????????? | | ??????????????# ??????????????????????????????? | | ?????????????????????????????????????????????????? | | ?????????????????????????????????????????????????? | | ?????????????????????????????????????????????????? | | ?????????????????????????????????????????????????? | | ?????????????????????????????????????????????????? | | ?????????????????????????????????????????????????? | +----------------------------------------------------+ Best States ------------- Heat Dissipation 39 Energy Generation 14 Energy Capacity 280 Matter Stores 300 Matter Capacity 300 Sight Range 16 Terrain Scan Density 10 Evasion (%) 55 Recoil Reduction 2 Item Schematics ----------------- None Robot Schematics ------------------ None Fabricated ------------ Nothing Repaired ---------- Nothing Studied --------- None Alien Tech Used ----------------- None Achievements -------------- None Challenges ------------ None Game ------ Seed GreatPoweredTracker Manual? 0 Play Time 00:04:16 Cumulative 1375.1 hours Start 2026.08.20 @ 16:27:39 End 2026.08.20 @ 16:30:57 Sessions 3 Manual Loads 0 Difficulty Rogue Special Mode None Game No. 1686 Rogue 1402 Adventurer 124 Explorer 160 Win Type - Total 72 Types 55/0/11/4/1/0/0/1/0/0 Lore% 92 Gallery% 84 Achievement% 74 Wizard Run 0 Options --------- Layout 0 ASCII 0 Keyboard 1 Movement Numpad Keybinds 0 Fullscreen 2 Font 18/X11 Map View 76x50 Zoom Use 0% Tactical HUD 1 Map Filters NONE Filters NONE Steam 1 RUN: 66826b58-4a21-41d5-bad4-37aa22e9b591